fUST/lending_fUST_20260222
["ID","MTS","AMOUNT","RATE_DAILY","PERIOD"]
[406316145,1771728007533,380.97,7e-05,2]
[406316146,1771728008097,380.97,7e-05,2]
[406316147,1771728008652,380.97,7e-05,2]
[406316148,1771728009522,380.97,7e-05,2]
[406316149,1771728009768,380.97,7e-05,2]
[406316150,1771728010324,380.97,7e-05,2]
[406316151,1771728019918,5000.0,7.001e-05,2]
[406316152,1771728041730,5000.0,7.001e-05,2]
[406316153,1771728057426,3576.2395985,7.001e-05,2]
[406316154,1771728065315,5000.0,7.001e-05,2]
[406316155,1771728088456,5000.0,7.001e-05,2]
[406316156,1771728110865,5000.0,7.001e-05,2]
[406316157,1771728132769,5000.0,7.001e-05,2]
[406316158,1771728154846,5000.0,7.001e-05,2]
[406316159,1771728176962,5000.0,7.001e-05,2]
[406316160,1771728199412,5000.0,7.001e-05,2]
[406316161,1771728221296,5000.0,7.001e-05,2]
[406316162,1771728243223,5000.0,7.001e-05,2]
[406316163,1771728265856,5000.0,7.001e-05,2]
[406316164,1771728288605,5000.0,7.001e-05,2]
[406316165,1771728310620,5000.0,7.001e-05,2]
[406316166,1771728335145,5000.0,7.001e-05,2]
[406316167,1771728357156,5000.0,7.001e-05,2]
[406316168,1771728379732,5000.0,7.001e-05,2]
[406316169,1771728402079,5000.0,7.001e-05,2]
[406316170,1771728424691,5000.0,7.001e-05,2]
[406316171,1771728447030,5000.0,7.001e-05,2]
[406316172,1771728470067,5000.0,7.001e-05,2]
[406316173,1771728492168,5000.0,7.001e-05,2]
[406316174,1771728514144,5000.0,7.001e-05,2]
[406316175,1771728536207,5000.0,7.001e-05,2]
[406316176,1771728558788,5000.0,7.001e-05,2]
[406316177,1771728581496,5000.0,7.001e-05,2]
[406316178,1771728604003,5000.0,7.001e-05,2]
[406316179,1771728627444,5000.0,7.001e-05,2]
[406316205,1771728631967,-300.0,7.099e-05,2]
[406316207,1771728631977,-297.0,7.099e-05,2]
[406316209,1771728631986,-1200.0,7.099e-05,2]
[406316211,1771728631995,-520.0,7.099e-05,2]
[406316213,1771728632005,-17.72941915,7.099e-05,2]
[406316241,1771728638161,-132.27058085,7.099e-05,2]
[406316242,1771728638171,-380.97,7.1e-05,2]
[406316243,1771728638181,-380.97,7.1e-05,2]
[406316244,1771728638191,-380.97,7.1e-05,2]
[406316245,1771728638200,-380.97,7.1e-05,2]
[406316249,1771728638303,-366.23241036,7.1e-05,2]
[406316250,1771728638316,-14.73758964,7.1e-05,2]
[406316251,1771728638326,-380.97,7.1e-05,2]
[406316252,1771728638336,-380.97,7.1e-05,2]
[406316253,1771728638345,-380.97,7.2e-05,2]
[406316254,1771728638355,-380.97,7.2e-05,2]
[406316255,1771728638364,-380.97,7.2e-05,2]
[406316256,1771728638373,-380.97,7.2e-05,2]
[406316257,1771728638382,-380.97,7.2e-05,2]
[406316258,1771728638391,-380.97,7.2e-05,2]
[406316259,1771728638400,-380.97,7.2e-05,2]
[406316260,1771728638409,-380.97,7.3e-05,2]
[406316261,1771728638418,-380.97,7.3e-05,2]
[406316262,1771728638427,-380.97,7.3e-05,2]
[406316263,1771728638436,-380.97,7.3e-05,2]
[406316264,1771728638446,-380.97,7.3e-05,2]
[406316265,1771728638455,-380.97,7.3e-05,2]
[406316266,1771728638464,-380.97,7.3e-05,2]
[406316267,1771728638474,-380.97,7.4e-05,2]
[406316268,1771728638483,-380.97,7.4e-05,2]
[406316269,1771728638492,-380.97,7.4e-05,2]
[406316270,1771728638501,-380.97,7.4e-05,2]
[406316271,1771728638511,-380.97,7.4e-05,2]
[406316272,1771728638521,-380.97,7.4e-05,2]
[406316273,1771728638530,-380.97,7.4e-05,2]
[406316274,1771728638540,-380.97,7.4e-05,2]
[406316275,1771728638549,-380.97,7.5e-05,2]
[406316276,1771728638558,-380.97,7.5e-05,2]
[406316277,1771728638568,-380.97,7.5e-05,2]
[406316278,1771728638578,-380.97,7.5e-05,2]
[406316279,1771728638589,-380.97,7.5e-05,2]
[406316280,1771728638599,-380.97,7.5e-05,2]
[406316281,1771728638608,-380.97,7.5e-05,2]
[406316282,1771728638618,-380.97,7.6e-05,2]
[406316283,1771728638627,-380.97,7.6e-05,2]
[406316284,1771728638637,-380.97,7.6e-05,2]
[406316285,1771728638646,-420.0,7.809e-05,2]
[406316286,1771728638656,-1310.0,7.809e-05,2]
[406316287,1771728638666,-470.0,8.59e-05,2]
[406316288,1771728638677,-177.0,9.099e-05,2]
[406316289,1771728638686,-218.0684285,0.0001,2]
[406316290,1771728638696,-204.0,0.00011099,2]
[406316291,1771728638706,-150.0,0.00011508,2]
[406316292,1771728638716,-184.62551489,0.00011563,2]
[406316293,1771728638726,-165.31,0.00012329,2]
[406316294,1771728638735,-826.59,0.00012329,2]
[406316295,1771728638746,-307.0,0.00012498,2]
[406316296,1771728638755,-151.0,0.00012498,2]
[406316297,1771728638765,-307.0,0.00012521,2]
[406316298,1771728638774,-307.0,0.00012545,2]
[406316299,1771728638784,-226.0559537,0.00012575,2]
[406316300,1771728638793,-218.28649692,0.0001263,2]
[406316301,1771728638803,-151.0,0.00012634,2]
[406316302,1771728638812,-151.0,0.00012634,2]
[406316303,1771728638821,-151.0,0.00012634,2]
[406316304,1771728638831,-151.0,0.00012634,2]
[406316305,1771728638840,-209.40437684,0.00012634,2]
[406316306,1771728638849,-151.0,0.00012634,2]
[406316307,1771728638858,-151.0,0.00012634,2]
[406316308,1771728638867,-151.0,0.00012634,2]
[406316309,1771728638877,-151.0,0.00012634,2]
[406316310,1771728638886,-500.0,0.00012634,2]
[406316311,1771728638901,-151.0,0.00012634,2]
[406316312,1771728638911,-500.0,0.00012634,2]
[406316313,1771728638920,-151.0,0.00012634,2]
[406316314,1771728638930,-500.0,0.00012634,2]
[406316315,1771728638941,-209.40437684,0.00012634,2]
[406316316,1771728638951,-151.0,0.00012634,2]
[406316317,1771728638961,-500.0,0.00012634,2]
[406316318,1771728638971,-217.15233878,0.00012634,2]
[406316319,1771728638980,-151.0,0.00012634,2]
[406316320,1771728638989,-500.0,0.00012634,2]
[406316321,1771728638998,-250.0,0.00012634,2]
[406316322,1771728639007,-225.18697532,0.00012634,2]
[406316323,1771728639025,-250.0,0.00012634,2]
[406316324,1771728639037,-151.0,0.00012634,2]
[406316325,1771728639047,-500.0,0.00012634,2]
[406316326,1771728639057,-276.21029031,0.00012634,2]
[406316327,1771728639066,-233.51889341,0.00012634,2]
[406316328,1771728639077,-250.0,0.00012634,2]
[406316329,1771728639087,-500.0,0.00012634,2]
[406316330,1771728639096,-151.0,0.00012634,2]
[406316331,1771728639106,-242.15909246,0.00012634,2]
[406316332,1771728639115,-250.0,0.00012634,2]
[406316333,1771728639125,-500.0,0.00012634,2]
[406316334,1771728639134,-151.0,0.00012634,2]
[406316335,1771728639144,-250.0,0.00012634,2]
[406316336,1771728639154,-251.11897888,0.00012634,2]
[406316337,1771728639164,-250.0,0.00012634,2]
[406316338,1771728639174,-500.0,0.00012634,2]
[406316339,1771728639183,-250.0,0.00012634,2]
[406316340,1771728639193,-151.0,0.00012634,2]
[406316341,1771728639204,-260.4103811,0.00012634,2]
[406316342,1771728639214,-250.0,0.00012634,2]
[406316343,1771728639225,-500.0,0.00012634,2]
[406316344,1771728639234,-250.0,0.00012634,2]
[406316345,1771728639243,-151.0,0.00012634,2]
[406316346,1771728639253,-270.0455652,0.00012634,2]
[406316347,1771728639262,-250.0,0.00012634,2]
[406316348,1771728639272,-500.0,0.00012634,2]
[406316349,1771728639282,-250.0,0.00012634,2]
[406316350,1771728639292,-151.0,0.00012634,2]
[406316351,1771728639302,-280.03725112,0.00012634,2]
[406316352,1771728639312,-250.0,0.00012634,2]
[406316353,1771728639321,-250.0,0.00012634,2]
[406316354,1771728639330,-290.39862941,0.00012634,2]
[406316355,1771728639340,-151.0,0.00012634,2]
[406316356,1771728639349,-250.0,0.00012634,2]
[406316357,1771728639358,-250.0,0.00012634,2]
[406316358,1771728639367,-301.1433787,0.00012634,2]
[406316359,1771728639377,-250.0,0.00012634,2]
[406316360,1771728639386,-154.04416148,0.00012634,2]
[406316361,1771728639395,-250.0,0.00012634,2]
[406316362,1771728639404,-250.0,0.00012634,2]
[406316363,1771728639413,-250.0,0.00012634,2]
[406316364,1771728639422,-250.0,0.00012634,2]
[406316365,1771728639431,-250.0,0.00012634,2]
[406316366,1771728639441,-171.80011456,0.00012634,2]
[406316367,1771728639451,-151.0,0.00012634,2]
[406316368,1771728639461,-151.0,0.00012634,2]
[406316369,1771728639470,-170.156033,0.00012635,2]
[406316370,1771728639480,-211.532,0.00012642,2]
[406316371,1771728639490,-151.0,0.00012642,2]
[406316372,1771728639500,-151.0,0.00012642,2]
[406316373,1771728639510,-176.150191,0.00012642,2]
[406316374,1771728639519,-307.0,0.00012666,2]
[406316375,1771728639529,-307.0,0.00012721,2]
[406316376,1771728639539,-307.0,0.00012765,2]
[406316377,1771728639548,-307.0,0.00012772,2]
[406316378,1771728639558,-307.0,0.00012839,2]
[406316379,1771728639567,-307.0,0.00012856,2]
[406316380,1771728639576,-307.0,0.00012881,2]
[406316381,1771728639585,-2351.82800307,0.000129,2]
[406316382,1771728639594,-307.0,0.00012961,2]
[406316383,1771728639604,-474.32804642,0.00012999,2]
[406316384,1771728639614,-151.0,0.00013,2]
[406316385,1771728639624,-741.55944637,0.00013008,2]
[406316386,1771728639642,-33.32736226,0.00013008,2]
[406316387,1771728639652,-307.0,0.00013036,2]
[406316388,1771728639662,-307.0,0.00013067,2]
[406316389,1771728639762,-231.0,0.00013099,2]
[406316390,1771728639772,-307.0,0.00013131,2]
[406316391,1771728639781,-307.0,0.00013177,2]
[406316392,1771728639790,-151.0,0.00013177,2]
[406316393,1771728639799,-307.0,0.00013209,2]
[406316394,1771728639808,-307.0,0.00013231,2]
[406316395,1771728639817,-1837.2294425,0.00013241,2]
[406316396,1771728639826,-1154.9149711,0.00013241,2]
[406316397,1771728639836,-8946.8328635,0.00013241,2]
[406316398,1771728639845,-3108.1390608,0.00013241,2]
[406316399,1771728639853,-151.0,0.00013241,2]
[406316400,1771728639863,-151.0,0.00013241,2]
[406316401,1771728639871,-307.0,0.00013255,2]
[406316402,1771728639880,-166.50976615,0.00013273,2]
[406316403,1771728639890,-500.0,0.00013273,2]
[406316404,1771728639902,-500.0,0.00013273,2]
[406316405,1771728639912,-557.60955597,0.00013273,2]
[406316406,1771728639922,-500.0,0.00013273,2]
[406316407,1771728639931,-319.52563134,0.00013273,2]
[406316408,1771728639941,-500.0,0.00013273,2]
[406316409,1771728639950,-500.0,0.00013273,2]
[406316410,1771728639960,-500.0,0.00013273,2]
[406316411,1771728639969,-500.0,0.00013273,2]
[406316413,1771728639978,-500.0,0.00013273,2]
[406316414,1771728639987,-500.0,0.00013273,2]
[406316416,1771728639996,-500.0,0.00013273,2]
[406316417,1771728640005,-500.0,0.00013273,2]
[406316418,1771728640014,-500.0,0.00013273,2]
[406316419,1771728640023,-402.66966422,0.00013273,2]
[406316420,1771728640032,-500.0,0.00013273,2]
[406316421,1771728640041,-500.0,0.00013273,2]
[406316422,1771728640049,-550.82198446,0.00013273,2]
[406316423,1771728640059,-500.0,0.00013273,2]
[406316424,1771728640068,-500.0,0.00013273,2]
[406316425,1771728640077,-471.94596658,0.00013273,2]
[406316426,1771728640086,-500.0,0.00013273,2]
[406316427,1771728640095,-389.73512784,0.00013273,2]
[406316428,1771728640104,-500.0,0.00013273,2]
[406316429,1771728640114,-500.0,0.00013273,2]
[406316430,1771728640123,-500.0,0.00013273,2]
[406316431,1771728640131,-502.87113811,0.00013273,2]
[406316432,1771728640140,-500.0,0.00013273,2]
[406316433,1771728640149,-500.0,0.00013273,2]
[406316434,1771728640158,-500.0,0.00013273,2]
[406316435,1771728640167,-500.0,0.00013273,2]
[406316436,1771728640175,-500.0,0.00013273,2]
[406316437,1771728640184,-500.0,0.00013273,2]
[406316438,1771728640193,-500.0,0.00013273,2]
[406316439,1771728640202,-500.0,0.00013273,2]
[406316441,1771728640211,-500.0,0.00013273,2]
[406316442,1771728640220,-327.81758478,0.00013273,2]
[406316443,1771728640229,-526.82171063,0.00013273,2]
[406316444,1771728640238,-160.26504589,0.00013273,2]
[406316445,1771728640247,-500.0,0.00013273,2]
[406316447,1771728640256,-500.0,0.00013273,2]
[406316448,1771728640265,-500.0,0.00013273,2]
[406316449,1771728640274,-172.6213385,0.00013273,2]
[406316450,1771728640283,-500.0,0.00013273,2]
[406316451,1771728640292,-500.99024986,0.00013273,2]
[406316452,1771728640300,-500.3646494,0.00013273,2]
[406316453,1771728640309,-500.0,0.00013273,2]
[406316454,1771728640318,-500.0,0.00013273,2]
[406316455,1771728640327,-500.0,0.00013273,2]
[406316456,1771728640336,-500.0,0.00013273,2]
[406316457,1771728640345,-233.80630345,0.00013273,2]
[406316458,1771728640354,-500.0,0.00013273,2]
[406316459,1771728640363,-507.37515151,0.00013273,2]
[406316460,1771728640373,-2894.11750717,0.00013273,2]
[406316461,1771728640382,-178.272948,0.00013273,2]
[406316462,1771728640391,-151.0,0.00013273,2]
[406316463,1771728640400,-307.0,0.00013289,2]
[406316464,1771728640409,-160.0,0.00013326,10]
[406316466,1771728640418,-160.0,0.00013391,11]
[406316467,1771728640427,-160.0,0.00013457,12]
[406316468,1771728640436,-160.0,0.00013523,13]
[406316469,1771728640445,-307.0,0.00013538,2]
[406316470,1771728640454,-160.0,0.00013589,14]
[406316471,1771728640464,-307.0,0.00013631,2]
[406316472,1771728640473,-307.0,0.0001364,2]
[406316473,1771728640482,-160.0,0.00013655,15]
[406316474,1771728640491,-259.84026494,0.00013655,5]
[406316475,1771728640500,-150.0,0.00013673,2]
[406316476,1771728640510,-300.0,0.00013673,2]
[406316477,1771728640519,-307.0,0.00013683,2]
[406316478,1771728640528,-269.6201384,0.00013698,2]
[406316479,1771728640537,-500.0,0.00013698,2]
[406316480,1771728640546,-500.0,0.00013698,2]
[406316481,1771728640555,-500.0,0.00013698,2]
[406316482,1771728640564,-500.0,0.00013698,2]
[406316483,1771728640573,-500.0,0.00013698,2]
[406316484,1771728640583,-500.0,0.00013698,2]
[406316485,1771728640592,-500.0,0.00013698,2]
[406316486,1771728640601,-500.0,0.00013698,2]
[406316487,1771728640610,-500.0,0.00013698,2]
[406316488,1771728640620,-210.52823672,0.00013698,2]
[406316489,1771728640629,-500.0,0.00013698,2]
[406316490,1771728640638,-500.0,0.00013698,2]
[406316491,1771728640647,-508.39575846,0.00013698,2]
[406316492,1771728640656,-500.0,0.00013698,2]
[406316493,1771728640665,-503.38242266,0.00013698,2]
[406316494,1771728640675,-519.69847621,0.00013698,2]
[406316495,1771728640683,-500.0,0.00013698,2]
[406316496,1771728640692,-500.0,0.00013698,2]
[406316497,1771728640701,-500.0,0.00013698,2]
[406316498,1771728640710,-500.0,0.00013698,2]
[406316499,1771728640719,-352.87110583,0.00013698,2]
[406316501,1771728640728,-624.31953538,0.00013698,2]
[406316502,1771728640738,-19562.702332,0.00013699,2]
[406316503,1771728640747,-1000.0,0.00013699,2]
[406316504,1771728640755,-1664.466885,0.00013699,2]
[406316505,1771728640764,-1538.3428367,0.00013699,2]
[406316506,1771728640773,-151.0,0.00013699,2]
[406316507,1771728640782,-151.0,0.00013699,2]
[406316508,1771728640791,-151.0,0.00013699,2]
[406316509,1771728640799,-151.0,0.00013699,2]
[406316510,1771728640808,-151.0,0.00013699,2]
[406316511,1771728640817,-151.0,0.00013699,2]
[406316512,1771728640826,-151.0,0.00013699,2]
[406316513,1771728640835,-151.0,0.00013699,2]
[406316514,1771728640843,-151.0,0.00013699,2]
[406316515,1771728640852,-151.0,0.00013699,2]
[406316516,1771728640861,-233.796051,0.00013699,2]
[406316517,1771728640870,-500.0,0.00013699,2]
[406316518,1771728640878,-500.0,0.00013699,2]
[406316519,1771728640887,-500.0,0.00013699,2]
[406316520,1771728640900,-500.0,0.00013699,2]
[406316521,1771728640909,-500.0,0.00013699,2]
[406316522,1771728640918,-501.72276969,0.00013699,2]
[406316523,1771728640927,-500.0,0.00013699,2]
[406316524,1771728640997,-500.0,0.00013699,2]
[406316525,1771728641006,-628.74266515,0.00013699,2]
[406316526,1771728641015,-500.0,0.00013699,2]
[406316527,1771728641024,-500.25835957,0.00013699,2]
[406316528,1771728641033,-500.0,0.00013699,2]
[406316529,1771728641042,-500.0,0.00013699,2]
[406316530,1771728641051,-300.62952772,0.00013699,2]
[406316531,1771728641059,-500.0,0.00013699,2]
[406316532,1771728641068,-500.0,0.00013699,2]
[406316533,1771728641077,-500.0,0.00013699,2]
[406316534,1771728641086,-500.62732976,0.00013699,2]
[406316535,1771728641095,-500.0,0.00013699,2]
[406316536,1771728641104,-500.51829028,0.00013699,2]
[406316537,1771728641112,-502.14699684,0.00013699,2]
[406316538,1771728641121,-500.85139115,0.00013699,2]
[406316539,1771728641130,-569.37526988,0.00013699,2]
[406316540,1771728641139,-161.25285368,0.00013699,2]
[406316541,1771728641148,-496.43080713,0.00013699,2]
[406316542,1771728641157,-500.0,0.00013699,2]
[406316543,1771728641166,-504.54946832,0.00013699,2]
[406316544,1771728641175,-194.31306101,0.00013699,2]
[406316545,1771728641185,-601.93313899,0.00013699,2]
[406316546,1771728641194,-500.0,0.00013699,2]
[406316547,1771728641203,-500.0,0.00013699,2]
[406316548,1771728641212,-500.0,0.00013699,2]
[406316549,1771728641220,-500.0,0.00013699,2]
[406316550,1771728641230,-500.0,0.00013699,2]
[406316551,1771728641239,-160.83531958,0.00013699,2]
[406316552,1771728641249,-500.0,0.00013699,2]
[406316553,1771728641259,-500.0,0.00013699,2]
[406316554,1771728641269,-500.0,0.00013699,2]
[406316555,1771728641280,-500.0,0.00013699,2]
[406316556,1771728641290,-500.0,0.00013699,2]
[406316557,1771728641301,-592.24502676,0.00013699,2]
[406316558,1771728641313,-500.0,0.00013699,2]
[406316559,1771728641323,-500.0,0.00013699,2]
[406316560,1771728641332,-500.62968276,0.00013699,2]
[406316561,1771728641341,-500.0,0.00013699,2]
[406316562,1771728641350,-500.0,0.00013699,2]
[406316563,1771728641360,-500.0,0.00013699,2]
[406316564,1771728641369,-500.0,0.00013699,2]
[406316565,1771728641378,-501.38932795,0.00013699,2]
[406316566,1771728641387,-503.1988982,0.00013699,2]
[406316567,1771728641396,-500.0,0.00013699,2]
[406316568,1771728641405,-374.5268638,0.00013699,2]
[406316569,1771728641414,-501.08444298,0.00013699,2]
[406316570,1771728641424,-500.0,0.00013699,2]
[406316571,1771728641433,-505.50058053,0.00013699,2]
[406316572,1771728641442,-500.0,0.00013699,2]
[406316573,1771728641451,-538.43470019,0.00013699,2]
[406316574,1771728641460,-500.0,0.00013699,2]
[406316575,1771728641469,-307.0,0.00013705,2]
[406316576,1771728641478,-815.99324221,0.00013707,2]
[406316577,1771728641487,-452.80193771,0.00013723,2]
[406316578,1771728641497,-307.0,0.00013745,2]
[406316579,1771728641506,-168.710272,0.00013777,2]
[406316580,1771728641515,-500.0,0.00013788,2]
[406316581,1771728641525,-600.0,0.00013789,2]
[406316582,1771728641534,-800.0,0.00013805,2]
[406316583,1771728641544,-1008.03343224,0.00013821,2]
[406316584,1771728641553,-1000.0,0.00013821,2]
[406316585,1771728641562,-899.9098568,0.00013821,2]
[406316586,1771728641571,-1000.0,0.00013821,2]
[406316587,1771728641580,-1000.0,0.00013821,2]
[406316588,1771728641589,-778.61046944,0.00013821,2]
[406316589,1771728641598,-1000.0,0.00013821,2]
[406316590,1771728641609,-1000.0,0.00013821,2]
[406316591,1771728641618,-1000.0,0.00013821,2]
[406316592,1771728641628,-1000.0,0.00013821,2]
[406316593,1771728641638,-281.3270787,0.00013821,2]
[406316594,1771728641647,-1000.0,0.00013821,2]
[406316595,1771728641655,-1000.0,0.00013821,2]
[406316596,1771728641664,-1000.0,0.00013821,2]
[406316597,1771728641675,-1000.0,0.00013821,2]
[406316598,1771728641683,-1000.0,0.00013821,2]
[406316599,1771728641692,-1000.0,0.00013821,2]
[406316600,1771728641701,-1000.0,0.00013821,2]
[406316601,1771728641710,-1000.0,0.00013821,2]
[406316602,1771728641719,-500.27284033,0.00013821,2]
[406316603,1771728641727,-1000.0,0.00013821,2]
[406316604,1771728641736,-1000.0,0.00013821,2]
[406316605,1771728641745,-210.41118423,0.00013821,2]
[406316606,1771728641754,-1000.0,0.00013821,2]
[406316607,1771728641763,-1000.0,0.00013821,2]
[406316608,1771728641772,-1000.0,0.00013821,2]
[406316609,1771728641781,-1000.0,0.00013821,2]
[406316610,1771728641790,-1000.0,0.00013821,2]
[406316611,1771728641799,-353.87941412,0.00013821,2]
[406316612,1771728641807,-1000.0,0.00013821,2]
[406316613,1771728641816,-407.42050462,0.00013821,2]
[406316614,1771728641826,-366.1431409,0.00013821,2]
[406316615,1771728641835,-624.7025078,0.00013821,2]
[406316616,1771728641844,-1000.0,0.00013821,2]
[406316617,1771728641853,-1000.0,0.00013821,2]
[406316618,1771728641862,-500.60151554,0.00013821,2]
[406316619,1771728641871,-1000.0,0.00013821,2]
[406316620,1771728641880,-501.95460893,0.00013821,2]
[406316621,1771728641889,-800.0,0.00013833,2]
[406316622,1771728641904,-155.0,0.00013993,2]
[406316623,1771728641914,-217.15233878,0.00014003,2]
[406316624,1771728641923,-150.27380073,0.00014221,2]
[406316625,1771728641935,-600.0,0.00014221,2]
[406316626,1771728641945,-1000.0,0.00014247,2]
[406316627,1771728641954,-1000.0,0.00014247,2]
[406316628,1771728641964,-539.09096415,0.00014247,2]
[406316629,1771728641974,-151.09668567,0.00014247,2]
[406316630,1771728641984,-1121.14202016,0.00014247,2]
[406316631,1771728641993,-1000.0,0.00014247,2]
[406316632,1771728642002,-503.28061742,0.00014247,2]
[406316633,1771728642011,-507.58959783,0.00014247,2]
[406316634,1771728642019,-1000.0,0.00014247,2]
[406316635,1771728642028,-199.02246789,0.00014247,2]
[406316636,1771728642038,-1000.0,0.00014247,2]
[406316637,1771728642047,-1000.54807425,0.00014247,2]
[406316638,1771728642056,-500.49644314,0.00014247,2]
[406316639,1771728642065,-776.53229369,0.00014247,2]
[406316640,1771728642074,-1000.0,0.00014247,2]
[406316641,1771728642083,-1000.0,0.00014247,2]
[406316642,1771728642093,-360.18888641,0.00014247,2]
[406316643,1771728642160,-1005.88720736,0.00014247,2]
[406316644,1771728642169,-1000.0,0.00014247,2]
[406316645,1771728642178,-1000.0,0.00014247,2]
[406316646,1771728642187,-1001.9812147,0.00014247,2]
[406316647,1771728642196,-308.10044346,0.00014247,2]
[406316648,1771728642205,-1000.0,0.00014247,2]
[406316649,1771728642214,-1000.0,0.00014247,2]
[406316650,1771728642223,-1007.09162701,0.00014247,2]
[406316651,1771728642232,-1000.0,0.00014247,2]
[406316652,1771728642242,-1000.0,0.00014247,2]
[406316653,1771728642250,-1000.96352451,0.00014247,2]
[406316654,1771728642259,-1000.0,0.00014247,2]
[406316655,1771728642268,-1000.0,0.00014247,2]
[406316656,1771728642277,-692.84502518,0.00014247,2]
[406316657,1771728642286,-1000.0,0.00014247,2]
[406316658,1771728642295,-1002.37500565,0.00014247,2]
[406316659,1771728642304,-502.19496052,0.00014247,2]
[406316660,1771728642313,-1000.0,0.00014247,2]
[406316661,1771728642322,-1020.5606965,0.00014368,2]
[406316662,1771728642331,-1000.77568333,0.00014368,2]
[406316663,1771728642340,-1500.0,0.00014368,2]
[406316664,1771728642349,-500.58898421,0.00014368,2]
[406316665,1771728642358,-413.80928703,0.00014368,2]
[406316666,1771728642367,-1500.0,0.00014368,2]
[406316667,1771728642376,-1500.0,0.00014368,2]
[406316668,1771728642385,-1500.0,0.00014368,2]
[406316669,1771728642395,-1500.0,0.00014368,2]
[406316670,1771728642404,-1001.09595319,0.00014368,2]
[406316671,1771728642414,-1500.0,0.00014368,2]
[406316672,1771728642423,-1500.0,0.00014368,2]
[406316673,1771728642433,-1500.0,0.00014368,2]
[406316674,1771728642444,-1500.0,0.00014368,2]
[406316675,1771728642454,-878.96545149,0.00014368,2]
[406316676,1771728642463,-1500.0,0.00014368,2]
[406316677,1771728642472,-165.48206189,0.00014368,2]
[406316678,1771728642481,-1500.0,0.00014368,2]
[406316679,1771728642490,-958.33772051,0.00014368,2]
[406316680,1771728642499,-1476.84561059,0.00014368,2]
[406316681,1771728642508,-1500.0,0.00014368,2]
[406316682,1771728642517,-1121.67409824,0.00014368,2]
[406316683,1771728642526,-1500.0,0.00014368,2]
[406316684,1771728642535,-1002.75471725,0.00014368,2]
[406316685,1771728642544,-1008.52924915,0.00014368,2]
[406316686,1771728642554,-1500.0,0.00014368,2]
[406316687,1771728642565,-151.0,0.000144,2]
[406316688,1771728642575,-1387.027,0.00014413,2]
[406316689,1771728642584,-636.0,0.00014413,2]
[406316690,1771728642594,-150.803,0.00014413,2]
[406316691,1771728642603,-255.2957306,0.000147,5]
[406316692,1771728642614,-900.0,0.00014768,2]
[406316693,1771728642624,-1500.0,0.00014795,2]
[406316694,1771728642634,-554.48653698,0.00014795,2]
[406316695,1771728642643,-1500.0,0.00014795,2]
[406316696,1771728642652,-1402.18546864,0.00014795,2]
[406316697,1771728642661,-511.91344683,0.00014795,2]
[406316698,1771728642671,-1079.03853261,0.00014795,2]
[406316699,1771728642679,-271.59145059,0.00014795,2]
[406316700,1771728642689,-1500.0,0.00014795,2]
[406316701,1771728642698,-1199.32143596,0.00014795,2]
[406316702,1771728642707,-1080.4120953,0.00014795,2]
[406316703,1771728642716,-418.24173855,0.00014795,2]
[406316704,1771728642725,-1500.0,0.00014795,2]
[406316705,1771728642734,-1500.0,0.00014795,2]
[406316706,1771728642744,-511.10307144,0.00014795,2]
[406316707,1771728642754,-987.81157922,0.00014795,2]
[406316708,1771728642763,-611.945694,0.00014795,2]
[406316709,1771728642772,-1500.0,0.00014795,2]